[Event "*** Titled Tuesday Blitz"]
[Site "Chess.com"]
[Date "2021.04.06"]
[Round "5"]
[White "1977Ivan"]
[Black "ViditYT"]
[Result "1-0"]
[WhiteElo "2767"]
[BlackElo "2928"]
[TimeControl "180+1"]
[EndTime "10:58:19 PDT"]
[Termination "1977Ivan won on time"]

1. d4 {[%clk 0:03:00.9]} 1... Nf6 {[%clk 0:02:59.5]} 2. c4 {[%clk 0:03:01]} 2...
e6 {[%clk 0:02:59.2]} 3. Nc3 {[%clk 0:03:01.4]} 3... Bb4 {[%clk 0:02:59.1]} 4.
Bd2 {[%clk 0:03:01.9]} 4... c5 {[%clk 0:02:55.4]} 5. Nf3 {[%clk 0:02:58.9]} 5...
cxd4 {[%clk 0:02:52.1]} 6. Nxd4 {[%clk 0:02:59.8]} 6... Nc6 {[%clk 0:02:51.7]}
7. a3 {[%clk 0:02:55.7]} 7... Be7 {[%clk 0:02:49]} 8. Bf4 {[%clk 0:02:37.5]}
8... d6 {[%clk 0:02:25.9]} 9. e3 {[%clk 0:02:17.8]} 9... O-O {[%clk 0:02:21.7]}
10. Be2 {[%clk 0:02:17]} 10... a6 {[%clk 0:02:21]} 11. O-O {[%clk 0:02:16]}
11... Bd7 {[%clk 0:02:05.6]} 12. Rc1 {[%clk 0:02:12.7]} 12... Rc8 {[%clk
0:01:56.3]} 13. Bg3 {[%clk 0:02:11.8]} 13... Ne5 {[%clk 0:01:50.4]} 14. b3
{[%clk 0:02:10.1]} 14... Qa5 {[%clk 0:01:43.1]} 15. a4 {[%clk 0:01:49.5]} 15...
Rfd8 {[%clk 0:01:41]} 16. f4 {[%clk 0:01:44.9]} 16... Nc6 {[%clk 0:01:26]} 17.
Be1 {[%clk 0:01:45.2]} 17... Qb6 {[%clk 0:01:24.7]} 18. Kh1 {[%clk 0:01:36.5]}
18... Be8 {[%clk 0:01:24]} 19. Bf3 {[%clk 0:01:32.6]} 19... g6 {[%clk
0:01:10.5]} 20. g4 {[%clk 0:01:28.2]} 20... Nb4 {[%clk 0:01:06.2]} 21. g5 {[%clk
0:01:20.9]} 21... Nd7 {[%clk 0:01:05.4]} 22. a5 {[%clk 0:01:21.1]} 22... Qc7
{[%clk 0:00:58.4]} 23. Ne4 {[%clk 0:01:18.2]} 23... Nc6 {[%clk 0:00:47]} 24. Bc3
{[%clk 0:01:13.7]} 24... d5 {[%clk 0:00:42.5]} 25. cxd5 {[%clk 0:01:10.2]} 25...
exd5 {[%clk 0:00:42.7]} 26. Nxc6 {[%clk 0:01:06.7]} 26... bxc6 {[%clk
0:00:40.1]} 27. Qd4 {[%clk 0:01:06.1]} 27... Ne5 {[%clk 0:00:14.5]} 28. Nd2
{[%clk 0:00:59.7]} 28... f6 {[%clk 0:00:13.7]} 29. fxe5 {[%clk 0:00:58.7]} 29...
c5 {[%clk 0:00:12.1]} 30. Qg4 {[%clk 0:00:50.6]} 30... f5 {[%clk 0:00:11.5]} 31.
Qf4 {[%clk 0:00:50.4]} 31... Bc6 {[%clk 0:00:11.4]} 32. b4 {[%clk 0:00:46]}
32... d4 {[%clk 0:00:07.4]} 33. exd4 {[%clk 0:00:44.6]} 33... cxb4 {[%clk
0:00:07.7]} 34. Bxb4 {[%clk 0:00:40.8]} 34... Bxf3+ {[%clk 0:00:05.8]} 35. Nxf3
{[%clk 0:00:41.7]} 35... Qb7 {[%clk 0:00:05.1]} 36. Bxe7 {[%clk 0:00:40.2]}
36... Qxe7 {[%clk 0:00:06]} 37. Rxc8 {[%clk 0:00:38.1]} 37... Rxc8 {[%clk
0:00:06.9]} 38. d5 {[%clk 0:00:38.4]} 38... Qc5 {[%clk 0:00:07.4]} 39. d6 {[%clk
0:00:37.7]} 39... Qb5 {[%clk 0:00:07.6]} 40. Re1 {[%clk 0:00:37]} 40... Rc4
{[%clk 0:00:07.4]} 41. Qd2 {[%clk 0:00:33.2]} 41... Qc6 {[%clk 0:00:07.8]} 42.
Rf1 {[%clk 0:00:31.6]} 42... Rc2 {[%clk 0:00:08.1]} 43. Qd3 {[%clk 0:00:30.5]}
43... Rc3 {[%clk 0:00:08]} 44. Qe2 {[%clk 0:00:29.5]} 44... Rc2 {[%clk
0:00:08.4]} 45. Qe3 {[%clk 0:00:28.6]} 45... Qc4 {[%clk 0:00:08.4]} 46. Rg1
{[%clk 0:00:23.5]} 46... Rc3 {[%clk 0:00:08.5]} 47. Qf2 {[%clk 0:00:22.3]} 47...
Qd5 {[%clk 0:00:08.3]} 48. Rf1 {[%clk 0:00:21.4]} 48... h6 {[%clk 0:00:05]} 49.
d7 {[%clk 0:00:19.9]} 49... hxg5 {[%clk 0:00:04.7]} 50. e6 {[%clk 0:00:17.6]}
50... Rd3 {[%clk 0:00:03.8]} 51. Qe2 {[%clk 0:00:15.5]} 51... g4 {[%clk
0:00:02.7]} 52. Qe5 {[%clk 0:00:15.3]} 1-0

[Event "*** Titled Tuesday Blitz"]
[Site "Chess.com"]
[Date "2021.04.06"]
[Round "5"]
[White "AlexTriapishko"]
[Black "Sanyura"]
[Result "1-0"]
[WhiteElo "2824"]
[BlackElo "2597"]
[TimeControl "180+1"]
[EndTime "10:58:20 PDT"]
[Termination "AlexTriapishko won on time"]

1. d4 {[%clk 0:03:00.9]} 1... Nf6 {[%clk 0:02:21.9]} 2. Bg5 {[%clk 0:03:00.5]}
2... Ne4 {[%clk 0:02:18.8]} 3. Bf4 {[%clk 0:03:00.7]} 3... c5 {[%clk 0:02:16.6]}
4. f3 {[%clk 0:02:57.9]} 4... Qa5+ {[%clk 0:02:11.9]} 5. c3 {[%clk 0:02:57.5]}
5... Nf6 {[%clk 0:02:06.3]} 6. d5 {[%clk 0:02:57.9]} 6... e6 {[%clk 0:02:06]} 7.
e4 {[%clk 0:02:56.1]} 7... exd5 {[%clk 0:01:58.8]} 8. exd5 {[%clk 0:02:57]} 8...
d6 {[%clk 0:01:59.2]} 9. Na3 {[%clk 0:02:51.8]} 9... Be7 {[%clk 0:01:58.5]} 10.
Bd3 {[%clk 0:02:20.1]} 10... O-O {[%clk 0:01:53.9]} 11. Ne2 {[%clk 0:02:20.6]}
11... Nxd5 {[%clk 0:01:46.2]} 12. Bxh7+ {[%clk 0:02:18.6]} 12... Kxh7 {[%clk
0:01:47.1]} 13. Qxd5 {[%clk 0:02:19.1]} 13... Nc6 {[%clk 0:01:45.9]} 14. Nc4
{[%clk 0:02:12.6]} 14... Qa6 {[%clk 0:01:44.1]} 15. Bxd6 {[%clk 0:01:53.4]}
15... Be6 {[%clk 0:01:04.3]} 16. Qe4+ {[%clk 0:01:53.1]} 16... Kg8 {[%clk
0:01:02.1]} 17. Bxe7 {[%clk 0:01:53.2]} 17... Nxe7 {[%clk 0:01:01.7]} 18. b3
{[%clk 0:01:48.6]} 18... Rfe8 {[%clk 0:00:53.6]} 19. O-O {[%clk 0:01:44.1]}
19... Bf5 {[%clk 0:00:34.4]} 20. Qh4 {[%clk 0:01:21.4]} 20... Bd3 {[%clk
0:00:28.7]} 21. Rfe1 {[%clk 0:01:21.6]} 21... Ng6 {[%clk 0:00:28.1]} 22. Qf2
{[%clk 0:01:15]} 22... Bxc4 {[%clk 0:00:27.2]} 23. bxc4 {[%clk 0:01:15.9]} 23...
Qxc4 {[%clk 0:00:27.8]} 24. Ng3 {[%clk 0:01:05.7]} 24... Nf4 {[%clk 0:00:14.8]}
25. Re4 {[%clk 0:01:02.6]} 25... Qxc3 {[%clk 0:00:11.3]} 26. Rae1 {[%clk
0:01:00]} 26... Rxe4 {[%clk 0:00:10.9]} 27. Nxe4 {[%clk 0:00:59.7]} 27... Qd4
{[%clk 0:00:11.3]} 28. Nxc5 {[%clk 0:00:53.9]} 28... Qxf2+ {[%clk 0:00:09.2]}
29. Kxf2 {[%clk 0:00:54.8]} 29... b6 {[%clk 0:00:09.1]} 30. Re4 {[%clk
0:00:50.8]} 30... Nh3+ {[%clk 0:00:08.5]} 31. Kg3 {[%clk 0:00:46.8]} 31... Ng5
{[%clk 0:00:08.7]} 32. Rg4 {[%clk 0:00:44.4]} 32... bxc5 {[%clk 0:00:06.9]} 33.
Rxg5 {[%clk 0:00:44.5]} 33... Rc8 {[%clk 0:00:07.6]} 34. Kf2 {[%clk 0:00:40.9]}
34... c4 {[%clk 0:00:07]} 35. Ke2 {[%clk 0:00:38.3]} 35... c3 {[%clk 0:00:06.3]}
36. Kd1 {[%clk 0:00:38.3]} 36... c2+ {[%clk 0:00:04.8]} 37. Kc1 {[%clk
0:00:38.5]} 37... f6 {[%clk 0:00:04.5]} 38. Ra5 {[%clk 0:00:35.6]} 38... Rc7
{[%clk 0:00:04.4]} 39. Rd5 {[%clk 0:00:33.5]} 39... Kf7 {[%clk 0:00:02.7]} 40.
Rd2 {[%clk 0:00:33.5]} 40... Ke6 {[%clk 0:00:02.9]} 41. Rxc2 {[%clk 0:00:33.7]}
41... Rb7 {[%clk 0:00:03.5]} 42. Rc4 {[%clk 0:00:30.2]} 42... g5 {[%clk
0:00:03.4]} 43. Ra4 {[%clk 0:00:28.9]} 43... Rh7 {[%clk 0:00:02.6]} 44. h3
{[%clk 0:00:28.8]} 44... Rb7 {[%clk 0:00:02.4]} 45. Kc2 {[%clk 0:00:27.8]} 45...
Ke5 {[%clk 0:00:02.8]} 46. Kc3 {[%clk 0:00:20.9]} 46... Kd5 {[%clk 0:00:02.2]}
47. h4 {[%clk 0:00:20.2]} 47... gxh4 {[%clk 0:00:01.7]} 48. Rxh4 {[%clk
0:00:21.1]} 48... f5 {[%clk 0:00:01.9]} 49. Rd4+ {[%clk 0:00:16.7]} 49... Ke5
{[%clk 0:00:02.1]} 50. f4+ {[%clk 0:00:17.2]} 50... Ke6 {[%clk 0:00:02.1]} 51.
Ra4 {[%clk 0:00:14.7]} 51... Rg7 {[%clk 0:00:01.9]} 52. Kd4 {[%clk 0:00:13.7]}
1-0

[Event "*** Titled Tuesday Blitz"]
[Site "Chess.com"]
[Date "2021.04.06"]
[Round "5"]
[White "FMOlexandrProhorov"]
[Black "maximnovik"]
[Result "0-1"]
[WhiteElo "2198"]
[BlackElo "2570"]
[TimeControl "180+1"]
[EndTime "10:58:20 PDT"]
[Termination "maximnovik won on time"]

1. Nf3 {[%clk 0:03:00.9]} 1... c5 {[%clk 0:02:49.5]} 2. c4 {[%clk 0:02:57.3]}
2... Nf6 {[%clk 0:02:45.8]} 3. Nc3 {[%clk 0:02:56.9]} 3... e6 {[%clk 0:02:42.3]}
4. g3 {[%clk 0:02:51.5]} 4... d5 {[%clk 0:02:38]} 5. cxd5 {[%clk 0:02:51.7]}
5... exd5 {[%clk 0:02:38.5]} 6. d4 {[%clk 0:02:52.1]} 6... Be7 {[%clk
0:02:37.9]} 7. Bg2 {[%clk 0:02:51.5]} 7... O-O {[%clk 0:02:38.3]} 8. O-O {[%clk
0:02:51.6]} 8... Nc6 {[%clk 0:02:38.8]} 9. Be3 {[%clk 0:02:50.1]} 9... c4 {[%clk
0:02:35.2]} 10. b3 {[%clk 0:02:39.8]} 10... Qa5 {[%clk 0:02:25.7]} 11. Bd2
{[%clk 0:02:34.6]} 11... Bb4 {[%clk 0:02:21.8]} 12. Qc2 {[%clk 0:02:14]} 12...
b5 {[%clk 0:01:49.7]} 13. e4 {[%clk 0:01:56.6]} 13... dxe4 {[%clk 0:01:42.2]}
14. Nxe4 {[%clk 0:01:56.3]} 14... Nxe4 {[%clk 0:01:37]} 15. Bxb4 {[%clk
0:01:37.9]} 15... Nxb4 {[%clk 0:01:35.7]} 16. Qxe4 {[%clk 0:01:38.5]} 16... Bd7
{[%clk 0:01:28.8]} 17. Ng5 {[%clk 0:01:27.9]} 17... f5 {[%clk 0:01:10.9]} 18.
Qxa8 {[%clk 0:01:26.3]} 18... Rxa8 {[%clk 0:01:09.2]} 19. Bxa8 {[%clk
0:01:27.2]} 19... c3 {[%clk 0:00:58.9]} 20. a3 {[%clk 0:01:21.3]} 20... Nd3
{[%clk 0:00:57.7]} 21. Bd5+ {[%clk 0:01:21.2]} 21... Kf8 {[%clk 0:00:53.7]} 22.
Rad1 {[%clk 0:01:05.1]} 22... b4 {[%clk 0:00:33.1]} 23. Rxd3 {[%clk 0:00:58.1]}
23... Qxd5 {[%clk 0:00:32.8]} 24. axb4 {[%clk 0:00:55.4]} 24... Bb5 {[%clk
0:00:29.4]} 25. Rxc3 {[%clk 0:00:46.8]} 25... Bxf1 {[%clk 0:00:28.7]} 26. Kxf1
{[%clk 0:00:45.3]} 26... Qh1+ {[%clk 0:00:29]} 27. Ke2 {[%clk 0:00:45]} 27...
Qxh2 {[%clk 0:00:29.3]} 28. Rc8+ {[%clk 0:00:39.5]} 28... Ke7 {[%clk 0:00:28.9]}
29. Rc7+ {[%clk 0:00:39.3]} 29... Kf6 {[%clk 0:00:28.9]} 30. Nf3 {[%clk
0:00:36.6]} 30... Qh1 {[%clk 0:00:25.7]} 31. Rc6+ {[%clk 0:00:33.3]} 31... Ke7
{[%clk 0:00:25.2]} 32. Rc7+ {[%clk 0:00:32.2]} 32... Ke8 {[%clk 0:00:16.3]} 33.
Rxa7 {[%clk 0:00:31]} 33... Qb1 {[%clk 0:00:12.1]} 34. Ne5 {[%clk 0:00:27.7]}
34... Qe4+ {[%clk 0:00:11.7]} 35. Kf1 {[%clk 0:00:25.7]} 35... Qh1+ {[%clk
0:00:10.8]} 36. Ke2 {[%clk 0:00:24.9]} 36... Qe4+ {[%clk 0:00:10.3]} 37. Kf1
{[%clk 0:00:24]} 37... g5 {[%clk 0:00:10.3]} 38. Rxh7 {[%clk 0:00:19.7]} 38...
f4 {[%clk 0:00:10.2]} 39. Rh8+ {[%clk 0:00:19.5]} 39... Ke7 {[%clk 0:00:09.6]}
40. gxf4 {[%clk 0:00:17.9]} 40... gxf4 {[%clk 0:00:09.1]} 41. f3 {[%clk
0:00:11.4]} 41... Qb1+ {[%clk 0:00:08]} 42. Kf2 {[%clk 0:00:10.1]} 42... Qb2+
{[%clk 0:00:07.2]} 43. Kf1 {[%clk 0:00:08.9]} 43... Qxb3 {[%clk 0:00:06.7]} 44.
Ng6+ {[%clk 0:00:08.1]} 44... Kf6 {[%clk 0:00:06.4]} 45. Nxf4 {[%clk 0:00:06.9]}
45... Qxf3+ {[%clk 0:00:06]} 46. Ke1 {[%clk 0:00:06.2]} 46... Kg7 {[%clk
0:00:04.3]} 47. Rh3 {[%clk 0:00:02.3]} 47... Qxf4 {[%clk 0:00:04.1]} 48. Rd3
{[%clk 0:00:01]} 48... Kf6 {[%clk 0:00:03.5]} 0-1

[Event "*** Titled Tuesday Blitz"]
[Site "Chess.com"]
[Date "2021.04.06"]
[Round "5"]
[White "InitiatingASC"]
[Black "manuellarrea"]
[Result "1-0"]
[WhiteElo "2426"]
[BlackElo "2248"]
[TimeControl "180+1"]
[EndTime "10:58:21 PDT"]
[Termination "InitiatingASC won on time"]

1. d4 {[%clk 0:02:25.7]} 1... Nf6 {[%clk 0:02:59.4]} 2. c4 {[%clk 0:02:25.7]}
2... e6 {[%clk 0:02:59.4]} 3. Nc3 {[%clk 0:02:25.6]} 3... d5 {[%clk 0:02:59.3]}
4. e3 {[%clk 0:02:24.4]} 4... c5 {[%clk 0:02:58.8]} 5. Nf3 {[%clk 0:02:24.7]}
5... Nc6 {[%clk 0:02:55.6]} 6. Bd3 {[%clk 0:02:24.5]} 6... cxd4 {[%clk
0:02:54.3]} 7. exd4 {[%clk 0:02:24.3]} 7... dxc4 {[%clk 0:02:54.1]} 8. Bxc4
{[%clk 0:02:25.2]} 8... Be7 {[%clk 0:02:54.1]} 9. O-O {[%clk 0:02:25.8]} 9...
O-O {[%clk 0:02:54.5]} 10. a3 {[%clk 0:02:25.5]} 10... b6 {[%clk 0:02:54.4]} 11.
Bd3 {[%clk 0:02:25.7]} 11... Bb7 {[%clk 0:02:53.7]} 12. Bc2 {[%clk 0:02:26.3]}
12... Rc8 {[%clk 0:02:45.5]} 13. Qd3 {[%clk 0:02:26.4]} 13... Re8 {[%clk
0:02:33.3]} 14. Bg5 {[%clk 0:02:25.9]} 14... g6 {[%clk 0:02:33.2]} 15. Rad1
{[%clk 0:02:25.5]} 15... Bf8 {[%clk 0:02:20.9]} 16. d5 {[%clk 0:02:21.7]} 16...
exd5 {[%clk 0:02:17.3]} 17. Nxd5 {[%clk 0:02:20.7]} 17... Qxd5 {[%clk
0:02:13.8]} 18. Bxf6 {[%clk 0:02:15.8]} 18... Qxd3 {[%clk 0:02:08.6]} 19. Bxd3
{[%clk 0:02:15.8]} 19... Bg7 {[%clk 0:02:05.4]} 20. Bxg7 {[%clk 0:02:14]} 20...
Kxg7 {[%clk 0:02:05.1]} 21. Bb5 {[%clk 0:02:14.9]} 21... Red8 {[%clk 0:01:59]}
22. h4 {[%clk 0:02:06.3]} 22... a6 {[%clk 0:01:46.1]} 23. Ba4 {[%clk 0:02:02.7]}
23... Rxd1 {[%clk 0:01:30.6]} 24. Rxd1 {[%clk 0:02:01.5]} 24... Rd8 {[%clk
0:01:28.5]} 25. Rxd8 {[%clk 0:01:57.7]} 25... Nxd8 {[%clk 0:01:27.2]} 26. Nd4
{[%clk 0:01:58.4]} 26... Kf6 {[%clk 0:01:24.4]} 27. g3 {[%clk 0:01:33]} 27...
Ke5 {[%clk 0:01:15.8]} 28. Ne2 {[%clk 0:01:27.8]} 28... b5 {[%clk 0:01:08.8]}
29. Bb3 {[%clk 0:01:26.3]} 29... Bd5 {[%clk 0:01:03.5]} 30. Bc2 {[%clk
0:01:25.4]} 30... Ne6 {[%clk 0:00:56.3]} 31. f4+ {[%clk 0:01:21]} 31... Kd6
{[%clk 0:00:55.7]} 32. f5 {[%clk 0:01:20.5]} 32... Nc5 {[%clk 0:00:52.8]} 33.
fxg6 {[%clk 0:01:11.8]} 33... hxg6 {[%clk 0:00:44.8]} 34. Kf2 {[%clk 0:01:10.5]}
34... Be4 {[%clk 0:00:31.5]} 35. Bxe4 {[%clk 0:00:46.2]} 35... Nxe4+ {[%clk
0:00:30.7]} 36. Ke3 {[%clk 0:00:46.9]} 36... Ke5 {[%clk 0:00:31]} 37. g4 {[%clk
0:00:44.6]} 37... f5 {[%clk 0:00:30.3]} 38. h5 {[%clk 0:00:37.7]} 38... gxh5
{[%clk 0:00:22.6]} 39. gxh5 {[%clk 0:00:36.6]} 39... Nf6 {[%clk 0:00:21.6]} 40.
Nf4 {[%clk 0:00:35]} 40... Ng4+ {[%clk 0:00:15.6]} 41. Kf3 {[%clk 0:00:33.3]}
41... Kd4 {[%clk 0:00:12]} 42. Ne6+ {[%clk 0:00:24.9]} 42... Ke5 {[%clk
0:00:10.8]} 43. Nc7 {[%clk 0:00:24.3]} 43... a5 {[%clk 0:00:09]} 44. Nxb5 {[%clk
0:00:24.4]} 44... Kf6 {[%clk 0:00:08]} 45. Nd4 {[%clk 0:00:21.2]} 45... Kg5
{[%clk 0:00:06.8]} 46. b4 {[%clk 0:00:20.5]} 46... axb4 {[%clk 0:00:05.3]} 47.
axb4 {[%clk 0:00:20.5]} 47... Kxh5 {[%clk 0:00:04.3]} 48. Nxf5 {[%clk
0:00:19.1]} 48... Kg5 {[%clk 0:00:04.3]} 49. Nd6 {[%clk 0:00:18.1]} 49... Ne5+
{[%clk 0:00:03.4]} 50. Ke4 {[%clk 0:00:17.4]} 50... Nd7 {[%clk 0:00:03]} 51. Kd5
{[%clk 0:00:16.3]} 51... Kf6 {[%clk 0:00:02.5]} 52. Kc6 {[%clk 0:00:15.1]} 52...
Ne5+ {[%clk 0:00:02.1]} 53. Kc7 {[%clk 0:00:13.5]} 53... Nd3 {[%clk 0:00:01.3]}
54. b5 {[%clk 0:00:13.7]} 54... Ke6 {[%clk 0:00:01.1]} 55. b6 {[%clk 0:00:13.8]}
1-0

[Event "*** Titled Tuesday Blitz"]
[Site "Chess.com"]
[Date "2021.04.06"]
[Round "5"]
[White "Legendinunknown"]
[Black "Kiborg95"]
[Result "1-0"]
[WhiteElo "2611"]
[BlackElo "2797"]
[TimeControl "180+1"]
[EndTime "10:58:22 PDT"]
[Termination "Legendinunknown won by resignation"]

1. d4 {[%clk 0:02:52.1]} 1... d6 {[%clk 0:02:59.8]} 2. c4 {[%clk 0:02:53]} 2...
e5 {[%clk 0:02:59.2]} 3. Nf3 {[%clk 0:02:51.7]} 3... e4 {[%clk 0:02:58.6]} 4.
Ng1 {[%clk 0:02:50.6]} 4... f5 {[%clk 0:02:58.4]} 5. Nc3 {[%clk 0:02:51.3]} 5...
Be7 {[%clk 0:02:52.3]} 6. Nh3 {[%clk 0:02:50.9]} 6... c6 {[%clk 0:02:50.7]} 7.
Nf4 {[%clk 0:02:50.4]} 7... Nf6 {[%clk 0:02:48.6]} 8. g3 {[%clk 0:02:50.3]} 8...
g5 {[%clk 0:02:46.6]} 9. Ng2 {[%clk 0:02:49.9]} 9... h6 {[%clk 0:02:47.2]} 10.
h4 {[%clk 0:02:49.3]} 10... Rg8 {[%clk 0:02:36]} 11. hxg5 {[%clk 0:02:48.3]}
11... hxg5 {[%clk 0:02:36.9]} 12. Be3 {[%clk 0:02:44.6]} 12... d5 {[%clk
0:02:30.7]} 13. Qd2 {[%clk 0:02:42.2]} 13... Ng4 {[%clk 0:02:28]} 14. O-O-O
{[%clk 0:02:39.8]} 14... Be6 {[%clk 0:02:25.1]} 15. f3 {[%clk 0:02:37.5]} 15...
Nxe3 {[%clk 0:02:23.6]} 16. Nxe3 {[%clk 0:02:37.1]} 16... Na6 {[%clk 0:02:03.6]}
17. fxe4 {[%clk 0:02:25]} 17... fxe4 {[%clk 0:02:02.8]} 18. cxd5 {[%clk
0:02:15.3]} 18... cxd5 {[%clk 0:02:02.6]} 19. Kb1 {[%clk 0:02:04.6]} 19... Qd7
{[%clk 0:01:59.4]} 20. Rh7 {[%clk 0:01:53.4]} 20... Nc7 {[%clk 0:01:51.7]} 21.
Bg2 {[%clk 0:01:48.8]} 21... O-O-O {[%clk 0:01:50]} 22. Rdh1 {[%clk 0:01:41.4]}
22... Kb8 {[%clk 0:01:47.4]} 23. Qc2 {[%clk 0:01:29.1]} 23... Qd6 {[%clk
0:01:43.7]} 24. R1h6 {[%clk 0:01:18.2]} 24... Rge8 {[%clk 0:01:28.5]} 25. Nf5
{[%clk 0:01:07.7]} 25... Bxf5 {[%clk 0:01:21.9]} 26. Rxd6 {[%clk 0:01:06.9]}
26... Bxd6 {[%clk 0:01:22.8]} 27. Rg7 {[%clk 0:01:04.8]} 27... Ne6 {[%clk
0:01:12.9]} 28. Rf7 {[%clk 0:00:59.5]} 28... Nxd4 {[%clk 0:01:12.7]} 29. Qa4
{[%clk 0:00:53.7]} 29... Be6 {[%clk 0:01:00]} 30. Rxb7+ {[%clk 0:00:49.6]} 30...
Kxb7 {[%clk 0:00:57.5]} 31. Qxd4 {[%clk 0:00:50.2]} 31... Bc7 {[%clk 0:00:45.5]}
32. Qg7 {[%clk 0:00:43.8]} 32... Kb8 {[%clk 0:00:27.6]} 33. Qxg5 {[%clk
0:00:37.3]} 33... Bb6 {[%clk 0:00:28]} 34. Qg6 {[%clk 0:00:28.5]} 34... Bd4
{[%clk 0:00:20.2]} 35. Nb5 {[%clk 0:00:26.2]} 35... Bb6 {[%clk 0:00:20.5]} 36.
Qf6 {[%clk 0:00:20.3]} 36... Bc8 {[%clk 0:00:20.3]} 37. Nd4 {[%clk 0:00:19.4]}
37... Bb7 {[%clk 0:00:17.4]} 38. Bh3 {[%clk 0:00:18.8]} 38... Rf8 {[%clk
0:00:17.2]} 39. Qe5+ {[%clk 0:00:18.8]} 39... Ka8 {[%clk 0:00:16.5]} 40. Ne6
{[%clk 0:00:19]} 40... Rfe8 {[%clk 0:00:16.2]} 41. Nc7+ {[%clk 0:00:18.8]} 41...
Bxc7 {[%clk 0:00:16.3]} 42. Qxc7 {[%clk 0:00:19.7]} 42... d4 {[%clk 0:00:16.8]}
43. Bd7 {[%clk 0:00:19.8]} 43... Rf8 {[%clk 0:00:13.6]} 44. Bc6 {[%clk
0:00:19.9]} 44... Bxc6 {[%clk 0:00:13.1]} 45. Qxc6+ {[%clk 0:00:20.8]} 45... Kb8
{[%clk 0:00:13.8]} 46. Qxe4 {[%clk 0:00:21]} 46... Rfe8 {[%clk 0:00:13.2]} 47.
Qf4+ {[%clk 0:00:20.8]} 47... Ka8 {[%clk 0:00:13.2]} 48. Qf3+ {[%clk 0:00:21.4]}
48... Kb8 {[%clk 0:00:13.4]} 49. Kc2 {[%clk 0:00:22]} 49... Rc8+ {[%clk
0:00:12.7]} 50. Kd2 {[%clk 0:00:21.9]} 50... Rcd8 {[%clk 0:00:13.4]} 51. Qf4+
{[%clk 0:00:22]} 51... Kc8 {[%clk 0:00:13.8]} 52. g4 {[%clk 0:00:22.7]} 52...
Re7 {[%clk 0:00:13]} 53. g5 {[%clk 0:00:22.8]} 53... Rde8 {[%clk 0:00:13.5]} 54.
Qg4+ {[%clk 0:00:22.5]} 54... Kb8 {[%clk 0:00:13.4]} 55. g6 {[%clk 0:00:22.5]}
55... Rg8 {[%clk 0:00:11]} 56. Qf4+ {[%clk 0:00:21.2]} 56... Kc8 {[%clk
0:00:11.2]} 57. Qf5+ {[%clk 0:00:21.3]} 57... Kb8 {[%clk 0:00:11.8]} 58. Qb5+
{[%clk 0:00:20.7]} 58... Ka8 {[%clk 0:00:11.2]} 59. Qd5+ {[%clk 0:00:20.9]}
59... Kb8 {[%clk 0:00:11.4]} 60. Qxg8+ {[%clk 0:00:21.8]} 1-0